fUST/lending_fUST_20260117
["ID","MTS","AMOUNT","RATE_DAILY","PERIOD"]
[402226932,1768612273070,-976.58,0.00022465,3]
[402226933,1768612273079,-500.0,0.00022465,3]
[402226934,1768612273088,-607.94,0.00022465,3]
[402226935,1768612273098,-416.07953614,0.00022465,3]
[402226936,1768612273108,-500.0,0.00022465,3]
[402226937,1768612273117,-500.0,0.00022465,3]
[402226938,1768612273126,-558.96,0.00022465,3]
[402226939,1768612273136,-556.64,0.00022465,3]
[402226940,1768612273146,-500.0,0.00022465,3]
[402226941,1768612273155,-554.47816123,0.00022465,3]
[402226942,1768612273164,-500.0,0.00022465,3]
[402226943,1768612273174,-513.79,0.00022465,3]
[402226944,1768612273183,-500.0,0.00022465,3]
[402226945,1768612273192,-500.0,0.00022465,3]
[402226946,1768612273202,-500.0,0.00022465,3]
[402226947,1768612273211,-500.0,0.00022465,3]
[402226948,1768612273221,-500.0,0.00022465,3]
[402226949,1768612273230,-500.0,0.00022465,3]
[402226950,1768612273240,-500.0,0.00022465,3]
[402226951,1768612273249,-500.0,0.00022465,3]
[402226952,1768612273259,-525.64,0.00022465,3]
[402226953,1768612273268,-465.61138056,0.00022465,3]
[402226954,1768612273278,-1585.89,0.00022465,3]
[402226955,1768612273288,-564.3,0.00022465,3]
[402226956,1768612273298,-533.08768902,0.00022465,3]
[402226957,1768612273308,-768.23,0.00022465,3]
[402226958,1768612273318,-500.0,0.00022465,3]
[402226959,1768612273327,-541.12751611,0.00022465,3]
[402226960,1768612273337,-500.0,0.00022465,3]
[402226961,1768612273346,-500.0,0.00022465,3]
[402226962,1768612273356,-1622.98,0.00022465,3]
[402226963,1768612273365,-1235.52,0.00022465,3]
[402226964,1768612273375,-500.0,0.00022465,3]
[402226965,1768612273384,-500.0,0.00022465,3]
[402226966,1768612273393,-645.71,0.00022465,3]
[402226967,1768612273402,-500.0,0.00022465,3]
[402226968,1768612273411,-500.0,0.00022465,3]
[402226969,1768612273420,-500.0,0.00022465,3]
[402226970,1768612273430,-500.0,0.00022465,3]
[402226971,1768612273442,-854.24,0.00022465,3]
[402226972,1768612273451,-500.0,0.00022465,3]
[402226973,1768612273461,-1159.08,0.00022465,3]
[402226974,1768612273470,-500.0,0.00022465,3]
[402226975,1768612273480,-1832.87,0.00022465,3]
[402226976,1768612273489,-500.0,0.00022465,3]
[402226977,1768612273498,-500.0,0.00022465,3]
[402226978,1768612273512,-1361.89,0.00022465,3]
[402226979,1768612273522,-1015.39,0.00022465,3]
[402226980,1768612273531,-1092.53,0.00022465,3]
[402226981,1768612273541,-500.0,0.00022465,3]
[402226982,1768612273550,-500.0,0.00022465,3]
[402226983,1768612273559,-603.87164677,0.00022465,3]
[402226984,1768612273568,-500.0,0.00022465,3]
[402226985,1768612273577,-500.0,0.00022465,3]
[402226986,1768612273587,-500.0,0.00022465,3]
[402226987,1768612273596,-500.0,0.00022465,3]
[402226988,1768612273606,-500.0,0.00022465,3]
[402226989,1768612273616,-2080.52,0.00022465,3]
[402226990,1768612273625,-694.83,0.00022465,3]
[402226991,1768612273635,-631.18,0.00022465,3]
[402226992,1768612273645,-1568.63,0.00022465,3]
[402226993,1768612273654,-500.0,0.00022465,3]
[402226994,1768612273663,-500.0,0.00022465,3]
[402226995,1768612273673,-500.0,0.00022465,3]
[402226996,1768612273682,-1023.88,0.00022465,3]
[402226997,1768612273691,-627.95,0.00022465,3]
[402226998,1768612273701,-498.897506,0.00022465,3]
[402226999,1768612273719,-1025.72,0.00022465,3]
[402227000,1768612273739,-531.87613168,0.00022465,3]
[402227001,1768612273759,-923.34,0.00022465,3]
[402227002,1768612273769,-500.0,0.00022465,3]
[402227003,1768612273780,-546.51,0.00022465,3]
[402227004,1768612273791,-500.0,0.00022465,3]
[402227005,1768612273803,-500.0,0.00022465,3]
[402227006,1768612273812,-500.0,0.00022465,3]
[402227007,1768612273823,-500.0,0.00022465,3]
[402227008,1768612273834,-1133.27,0.00022465,3]
[402227009,1768612273845,-526.63,0.00022465,3]
[402227010,1768612273856,-500.0,0.00022465,3]
[402227011,1768612273868,-526.00742964,0.00022465,3]
[402227012,1768612273879,-390.65598666,0.00022465,3]
[402227013,1768612273889,-606.64,0.00022465,3]
[402227014,1768612273900,-500.0,0.00022465,3]
[402227015,1768612273909,-211.62283602,0.00022465,3]
[402227016,1768612273919,-616.88,0.00022465,3]
[402227017,1768612273930,-1350.15,0.00022465,3]
[402227018,1768612273939,-500.0,0.00022465,3]
[402227019,1768612273950,-500.0,0.00022465,3]
[402227020,1768612273961,-500.0,0.00022465,3]
[402227021,1768612273972,-500.0,0.00022465,3]
[402227022,1768612273983,-500.0,0.00022465,3]
[402227023,1768612273992,-503.95,0.00022465,3]
[402227024,1768612274002,-500.0,0.00022465,3]
[402227025,1768612274012,-500.0,0.00022465,3]
[402227026,1768612274024,-1118.18,0.00022465,3]
[402227027,1768612274035,-2041.61,0.00022465,3]
[402227028,1768612274046,-533.43,0.00022465,3]
[402227029,1768612274057,-500.0,0.00022465,3]
[402227030,1768612274069,-500.0,0.00022465,3]
[402227031,1768612274084,-500.0,0.00022465,3]
[402227032,1768612274095,-500.0,0.00022465,3]
[402227033,1768612274106,-623.69002341,0.00022465,3]
[402227034,1768612274118,-500.0,0.00022465,3]
[402227035,1768612274127,-500.0,0.00022465,3]
[402227036,1768612274137,-785.98,0.00022465,3]
[402227037,1768612274146,-500.0,0.00022465,3]
[402227038,1768612274155,-500.0,0.00022465,3]
[402227039,1768612274165,-500.0,0.00022465,3]
[402227040,1768612274174,-1720.81,0.00022465,3]
[402227041,1768612274183,-502.37,0.00022465,3]
[402227042,1768612274193,-817.82,0.00022465,3]
[402227043,1768612274203,-500.0,0.00022465,3]
[402227044,1768612274212,-500.0,0.00022465,3]
[402227045,1768612274222,-845.07,0.00022465,3]
[402227046,1768612274231,-500.0,0.00022465,3]
[402227047,1768612274240,-500.0,0.00022465,3]
[402227048,1768612274250,-500.0,0.00022465,3]
[402227049,1768612274259,-500.0,0.00022465,3]
[402227050,1768612274268,-500.0,0.00022465,3]
[402227051,1768612274277,-500.0,0.00022465,3]
[402227052,1768612274287,-1219.03,0.00022465,3]
[402227053,1768612274296,-500.0,0.00022465,3]
[402227054,1768612274306,-2478.08,0.00022465,3]
[402227055,1768612274316,-500.0,0.00022465,3]
[402227056,1768612274326,-2562.85,0.00022465,3]
[402227057,1768612274335,-500.0,0.00022465,3]
[402227058,1768612274345,-500.76334661,0.00022465,3]
[402227059,1768612274354,-782.08,0.00022465,3]
[402227060,1768612274364,-500.0,0.00022465,3]
[402227061,1768612274373,-1683.6,0.00022465,3]
[402227062,1768612274383,-500.0,0.00022465,3]
[402227063,1768612274393,-2019.88,0.00022465,3]
[402227064,1768612274403,-812.22,0.00022465,3]
[402227065,1768612274413,-1783.86,0.00022465,3]
[402227066,1768612274425,-2935.53,0.00022465,3]
[402227067,1768612274435,-500.0,0.00022465,3]
[402227068,1768612274445,-500.0,0.00022465,3]
[402227069,1768612274456,-618.35,0.00022465,3]
[402227070,1768612274465,-345.19507922,0.00022465,3]
[402227071,1768612274475,-500.0,0.00022465,3]
[402227072,1768612274485,-500.0,0.00022465,3]
[402227073,1768612274495,-706.88,0.00022465,3]
[402227074,1768612274504,-500.0,0.00022465,3]
[402227075,1768612274515,-703.68,0.00022465,3]
[402227076,1768612274525,-500.0,0.00022465,3]
[402227077,1768612274535,-443.37129104,0.00022465,3]
[402227078,1768612274545,-500.0,0.00022465,3]
[402227079,1768612274555,-500.0,0.00022465,3]
[402227080,1768612274565,-883.96,0.00022465,3]
[402227081,1768612274575,-500.0,0.00022465,3]
[402227082,1768612274586,-1730.4,0.00022465,3]
[402227083,1768612274595,-2229.1,0.00022465,3]
[402227084,1768612274605,-870.56,0.00022465,3]
[402227085,1768612274616,-1965.15,0.00022465,3]
[402227086,1768612274627,-500.0,0.00022465,3]
[402227087,1768612274637,-500.0,0.00022465,3]
[402227088,1768612274648,-500.0,0.00022465,3]
[402227089,1768612274658,-1230.17,0.00022465,3]
[402227090,1768612274669,-500.0,0.00022465,3]
[402227091,1768612274679,-500.0,0.00022465,3]
[402227092,1768612274689,-500.0,0.00022465,3]
[402227093,1768612274698,-500.0,0.00022465,3]
[402227094,1768612274714,-500.0,0.00022465,3]
[402227095,1768612274736,-716.67,0.00022465,3]
[402227096,1768612274757,-1014.11,0.00022465,3]
[402227097,1768612274767,-1793.94,0.00022465,3]
[402227098,1768612274778,-500.0,0.00022465,3]
[402227099,1768612274788,-1251.47,0.00022465,3]
[402227100,1768612274798,-500.0,0.00022465,3]
[402227101,1768612274808,-500.0,0.00022465,3]
[402227102,1768612274818,-1993.75,0.00022465,3]
[402227103,1768612274828,-502.12,0.00022465,3]
[402227104,1768612274837,-500.0,0.00022465,3]
[402227105,1768612274847,-500.68353466,0.00022465,3]
[402227106,1768612274857,-500.0,0.00022465,3]
[402227107,1768612274867,-500.0,0.00022465,3]
[402227108,1768612274877,-500.0,0.00022465,3]
[402227109,1768612274887,-1188.4,0.00022465,3]
[402227110,1768612274896,-500.0,0.00022465,3]
[402227111,1768612274906,-255.9501663,0.00022465,3]
[402227112,1768612274916,-525.76,0.00022465,3]
[402227113,1768612274926,-1029.96,0.00022465,3]
[402227114,1768612274937,-1119.18,0.00022465,3]
[402227115,1768612274947,-500.0,0.00022465,3]
[402227116,1768612274957,-855.99,0.00022465,3]
[402227117,1768612274967,-512.27,0.00022465,3]
[402227118,1768612274977,-1815.05,0.00022465,3]
[402227119,1768612274987,-534.52,0.00022465,3]
[402227120,1768612274998,-500.0,0.00022465,3]
[402227121,1768612275008,-500.0,0.00022465,3]
[402227122,1768612275018,-535.55,0.00022465,3]
[402227123,1768612275030,-967.4,0.00022465,3]
[402227124,1768612275040,-574.18822828,0.00022465,3]
[402227125,1768612275051,-500.0,0.00022465,3]
[402227126,1768612275061,-500.0,0.00022465,3]
[402227127,1768612275072,-1136.87,0.00022465,3]
[402227128,1768612275082,-2084.88,0.00022465,3]
[402227129,1768612275092,-500.0,0.00022465,3]
[402227130,1768612275107,-1471.9,0.00022465,3]
[402227131,1768612275123,-576.56804048,0.00022465,3]
[402227132,1768612275135,-500.0,0.00022465,3]
[402227133,1768612275147,-8798.3,0.00022465,3]
[402227134,1768612275159,-564.01,0.00022465,3]
[402227135,1768612275169,-500.0,0.00022465,3]
[402227136,1768612275180,-958.68,0.00022465,3]
[402227137,1768612275190,-1479.47,0.00022465,3]
[402227138,1768612275200,-500.0,0.00022465,3]
[402227139,1768612275211,-500.0,0.00022465,3]
[402227140,1768612275221,-787.07,0.00022465,3]
[402227141,1768612275233,-500.0,0.00022465,3]
[402227142,1768612275243,-976.75,0.00022465,3]
[402227143,1768612275254,-1453.5,0.00022465,3]
[402227144,1768612275265,-500.0,0.00022465,3]
[402227145,1768612275275,-597.59114274,0.00022465,3]
[402227146,1768612275285,-1386.93,0.00022465,3]
[402227147,1768612275296,-500.0,0.00022465,3]
[402227148,1768612275307,-500.0,0.00022465,3]
[402227149,1768612275318,-500.0,0.00022465,3]
[402227150,1768612275328,-1742.45,0.00022465,3]
[402227151,1768612275338,-500.0,0.00022465,3]
[402227152,1768612275348,-500.96994979,0.00022465,3]
[402227153,1768612275358,-500.0,0.00022465,3]
[402227154,1768612275368,-500.0,0.00022465,3]
[402227155,1768612275378,-3952.31,0.00022465,3]
[402227156,1768612275389,-500.0,0.00022465,3]
[402227157,1768612275399,-614.82,0.00022465,3]
[402227158,1768612275410,-500.0,0.00022465,3]
[402227159,1768612275420,-523.59,0.00022465,3]
[402227160,1768612275431,-500.0,0.00022465,3]
[402227161,1768612275441,-500.0,0.00022465,3]
[402227162,1768612275452,-1627.08,0.00022465,3]
[402227163,1768612275462,-500.0,0.00022465,3]
[402227164,1768612275472,-500.0,0.00022465,3]
[402227165,1768612275483,-500.0,0.00022465,3]
[402227166,1768612275497,-500.0,0.00022465,3]
[402227167,1768612275509,-1692.55,0.00022465,3]
[402227168,1768612275520,-580.78,0.00022465,3]
[402227169,1768612275530,-500.0,0.00022465,3]
[402227170,1768612275541,-2942.71,0.00022465,3]
[402227171,1768612275551,-1514.63,0.00022465,3]
[402227172,1768612275561,-500.0,0.00022465,3]
[402227173,1768612275573,-1493.78,0.00022465,3]
[402227174,1768612275584,-500.0,0.00022465,3]
[402227175,1768612275594,-500.0,0.00022465,3]
[402227176,1768612275604,-500.0,0.00022465,3]
[402227177,1768612275615,-500.0,0.00022465,3]
[402227178,1768612275627,-500.0,0.00022465,3]
[402227179,1768612275638,-500.0,0.00022465,3]
[402227180,1768612275649,-660.52,0.00022465,3]
[402227181,1768612275662,-500.0,0.00022465,3]
[402227182,1768612275672,-1418.91,0.00022465,3]
[402227183,1768612275683,-730.62,0.00022465,3]
[402227184,1768612275694,-500.0,0.00022465,3]
[402227185,1768612275704,-500.0,0.00022465,3]
[402227186,1768612275717,-754.34,0.00022465,3]
[402227187,1768612275728,-500.0,0.00022465,3]
[402227188,1768612275738,-500.0,0.00022465,3]
[402227189,1768612275749,-500.0,0.00022465,3]
[402227190,1768612275760,-1145.41,0.00022465,3]
[402227191,1768612275774,-500.0,0.00022465,3]
[402227192,1768612275784,-500.0,0.00022465,3]
[402227193,1768612275795,-565.62,0.00022465,3]
[402227194,1768612275807,-500.0,0.00022465,3]
[402227195,1768612275817,-981.72,0.00022465,3]
[402227196,1768612275828,-500.0,0.00022465,3]
[402227197,1768612275838,-500.0,0.00022465,3]
[402227198,1768612275850,-593.53,0.00022465,3]
[402227199,1768612275861,-2793.44,0.00022465,3]
[402227200,1768612275872,-500.0,0.00022465,3]
[402227201,1768612275882,-500.0,0.00022465,3]
[402227202,1768612275893,-856.9,0.00022465,3]
[402227203,1768612275905,-1473.27,0.00022465,3]
[402227204,1768612275916,-542.78,0.00022465,3]
[402227205,1768612275928,-500.0,0.00022465,3]
[402227206,1768612275938,-673.29,0.00022465,3]
[402227207,1768612275949,-500.0,0.00022465,3]
[402227208,1768612275961,-500.0,0.00022465,3]
[402227209,1768612275972,-713.13,0.00022465,3]
[402227210,1768612275982,-1228.66,0.00022465,3]
[402227211,1768612275993,-1791.95,0.00022465,3]
[402227212,1768612276004,-547.48420565,0.00022465,3]
[402227213,1768612276014,-855.17,0.00022465,3]
[402227214,1768612276025,-657.4,0.00022465,3]
[402227215,1768612276035,-500.0,0.00022465,3]
[402227216,1768612276046,-500.0,0.00022465,3]
[402227217,1768612276056,-756.59,0.00022465,3]
[402227218,1768612276067,-500.57182202,0.00022465,3]
[402227219,1768612276077,-500.0,0.00022465,3]
[402227220,1768612276088,-500.0,0.00022465,3]
[402227221,1768612276099,-665.41,0.00022465,3]
[402227222,1768612276109,-602.92,0.00022465,3]
[402227223,1768612276119,-349.35761575,0.00022465,3]
[402227224,1768612276129,-962.94,0.00022465,3]
[402227225,1768612276140,-500.0,0.00022465,3]
[402227226,1768612276152,-500.0,0.00022465,3]
[402227227,1768612276164,-500.0,0.00022465,3]
[402227228,1768612276178,-722.91,0.00022465,3]
[402227229,1768612276198,-1519.18,0.00022465,3]
[402227230,1768612276214,-500.0,0.00022465,3]
[402227231,1768612276226,-1639.28,0.00022465,3]
[402227232,1768612276238,-500.0,0.00022465,3]
[402227233,1768612276248,-528.9,0.00022465,3]
[402227234,1768612276261,-500.0,0.00022465,3]
[402227235,1768612276272,-500.0,0.00022465,3]
[402227236,1768612276282,-1186.99,0.00022465,3]
[402227237,1768612276293,-1994.44,0.00022465,3]
[402227238,1768612276304,-523.14,0.00022465,3]
[402227239,1768612276315,-501.0112426,0.00022465,3]
[402227240,1768612276325,-933.57,0.00022465,3]
[402227241,1768612276336,-1547.34,0.00022465,3]
[402227242,1768612276347,-1004.8,0.00022465,3]
[402227243,1768612276358,-500.0,0.00022465,3]
[402227244,1768612276368,-16346.06,0.00022465,3]
[402227245,1768612276379,-500.0,0.00022465,3]
[402227246,1768612276390,-1226.67,0.00022465,3]
[402227247,1768612276400,-612.9,0.00022465,3]
[402227248,1768612276411,-656.08,0.00022465,3]
[402227249,1768612276421,-500.0,0.00022465,3]
[402227250,1768612276435,-500.0,0.00022465,3]
[402227251,1768612276445,-500.0,0.00022465,3]
[402227252,1768612276456,-1118.7,0.00022465,3]
[402227253,1768612276470,-1409.14,0.00022465,3]
[402227254,1768612276480,-519.4405421,0.00022465,3]
[402227255,1768612276490,-500.0,0.00022465,3]
[402227256,1768612276501,-500.0,0.00022465,3]
[402227257,1768612276512,-500.0,0.00022465,3]
[402227258,1768612276523,-500.0,0.00022465,3]
[402227259,1768612276533,-500.45550363,0.00022465,3]
[402227260,1768612276543,-500.0,0.00022465,3]
[402227261,1768612276553,-1384.22,0.00022465,3]
[402227262,1768612276563,-500.0,0.00022465,3]
[402227263,1768612276574,-500.0,0.00022465,3]
[402227264,1768612276584,-500.0,0.00022465,3]
[402227265,1768612276595,-500.0,0.00022465,3]
[402227266,1768612276605,-500.0,0.00022465,3]
[402227267,1768612276616,-655.85,0.00022465,3]
[402227268,1768612276626,-500.0,0.00022465,3]
[402227269,1768612276636,-500.0,0.00022465,3]
[402227270,1768612276647,-1683.12,0.00022465,3]
[402227271,1768612276657,-500.0,0.00022465,3]
[402227272,1768612276667,-1141.76,0.00022465,3]
[402227273,1768612276677,-2466.84,0.00022465,3]
[402227274,1768612276688,-500.0,0.00022465,3]
[402227275,1768612276698,-500.0,0.00022465,3]
[402227276,1768612276709,-500.0,0.00022465,3]
[402227277,1768612276724,-500.0,0.00022465,3]
[402227278,1768612277009,-475.21554897,0.00022465,2]
[402227279,1768612277019,-500.0,0.00022465,3]
[402227280,1768612277028,-703.27,0.00022465,3]
[402227281,1768612277038,-500.0,0.00022465,3]
[402227282,1768612277047,-762.01,0.00022465,3]
[402227283,1768612277057,-500.0,0.00022465,3]
[402227284,1768612277066,-1884.7,0.00022465,3]
[402227285,1768612277075,-754.32,0.00022465,3]
[402227286,1768612277084,-500.0,0.00022465,3]
[402227287,1768612277094,-504.06,0.00022465,3]
[402227288,1768612277103,-500.0,0.00022465,3]
[402227289,1768612277117,-500.0,0.00022465,3]
[402227290,1768612277127,-500.0,0.00022465,3]
[402227291,1768612277136,-500.0,0.00022465,3]
[402227292,1768612277145,-1595.17,0.00022465,3]
[402227293,1768612277154,-1407.78,0.00022465,3]
[402227294,1768612277163,-1591.45,0.00022465,3]
[402227295,1768612277172,-500.0,0.00022465,3]
[402227296,1768612277182,-1092.06,0.00022465,3]
[402227297,1768612277191,-500.0,0.00022465,3]
[402227298,1768612277200,-899.14,0.00022465,3]
[402227299,1768612277210,-500.0,0.00022465,3]
[402227300,1768612277219,-500.0,0.00022465,3]
[402227301,1768612277228,-885.73,0.00022465,3]
[402227302,1768612277237,-500.0,0.00022465,3]
[402227303,1768612277246,-500.0,0.00022465,3]
[402227304,1768612277256,-1029.09,0.00022465,3]
[402227305,1768612277265,-500.0,0.00022465,3]
[402227306,1768612277274,-615.64,0.00022465,3]
[402227307,1768612277283,-500.0,0.00022465,3]
[402227308,1768612277293,-500.0,0.00022465,3]
[402227309,1768612277302,-818.32,0.00022465,3]
[402227310,1768612277311,-500.0,0.00022465,2]
[402227311,1768612277320,-348.95912999,0.00022465,3]
[402227312,1768612277331,-616.15085121,0.00022465,3]
[402227313,1768612277341,-500.0,0.00022465,3]
[402227314,1768612277351,-500.2613598,0.00022465,3]
[402227315,1768612277361,-500.0,0.00022465,3]
[402227316,1768612277371,-1293.79,0.00022465,3]
[402227317,1768612277382,-500.0,0.00022465,3]
[402227318,1768612277391,-599.42,0.00022465,3]
[402227319,1768612277403,-685.41,0.00022465,3]
[402227320,1768612277412,-500.0,0.00022465,3]
[402227321,1768612277422,-1974.67,0.00022465,3]
[402227322,1768612277431,-500.0,0.00022465,3]
[402227323,1768612277440,-1560.37,0.00022465,3]
[402227324,1768612277450,-500.0,0.00022465,3]
[402227325,1768612277460,-500.0,0.00022465,3]
[402227326,1768612277469,-500.0,0.00022465,2]
[402227327,1768612277479,-500.0,0.00022465,3]
[402227328,1768612277489,-500.0,0.00022465,3]
[402227329,1768612277500,-500.0,0.00022465,3]
[402227330,1768612277509,-500.0,0.00022465,3]
[402227331,1768612277518,-500.0,0.00022465,3]
[402227332,1768612277528,-2128.03,0.00022465,3]
[402227333,1768612277537,-2225.62,0.00022465,3]
[402227334,1768612277547,-500.0,0.00022465,3]
[402227335,1768612277557,-500.0,0.00022465,2]
[402227336,1768612277566,-500.0,0.00022465,3]
[402227337,1768612277576,-500.0,0.00022465,3]
[402227338,1768612277586,-931.4,0.00022465,3]
[402227339,1768612277595,-500.0,0.00022465,3]
[402227340,1768612277604,-500.0,0.00022465,3]
[402227341,1768612277613,-474.97559863,0.00022465,3]
[402227342,1768612277623,-500.0,0.00022465,3]
[402227343,1768612277632,-500.0,0.00022465,2]
[402227344,1768612277641,-895.04,0.00022465,3]
[402227345,1768612277650,-1364.94,0.00022465,3]
[402227346,1768612277660,-500.0,0.00022466,5]
[402227347,1768612277669,-300.0,0.00022466,2]
[402227348,1768612277679,-250.0,0.00022466,2]
[402227349,1768612277688,-200.0,0.00022466,2]
[402227350,1768612277697,-800.0,0.00022484,2]
[402227351,1768612277707,-167.85,0.000225,7]
[402227352,1768612277721,-12036.46499399,0.00022553,2]
[402227353,1768612277730,-800.0,0.00022587,2]
[402227354,1768612277740,-2000.0,0.00022596,7]
[402227355,1768612277749,-800.0,0.00022597,2]
[402227356,1768612277759,-777.50580187,0.00022607,24]
[402227357,1768612277768,-800.0,0.0002262,2]
[402227358,1768612277777,-800.0,0.00022654,2]
[402227359,1768612277786,-800.0,0.00022658,2]
[402227360,1768612277795,-6853.5,0.000227,3]
[402227361,1768612277805,-12675.08838795,0.00022713,2]
[402227362,1768612277814,-500.0,0.00022739,3]
[402227363,1768612277824,-500.0,0.00022739,3]
[402227364,1768612277834,-500.0,0.00022739,3]
[402227365,1768612277843,-500.0,0.00022739,3]
[402227366,1768612277853,-500.0,0.00022739,3]
[402227367,1768612277862,-1030.1027638,0.00022739,3]
[402227368,1768612277872,-500.0,0.00022739,3]
[402227369,1768612277882,-500.0,0.00022739,3]
[402227370,1768612277892,-500.0,0.00022739,3]
[402227371,1768612277902,-500.0,0.00022739,3]
[402227372,1768612277911,-500.0,0.00022739,3]
[402227373,1768612277920,-500.0,0.00022739,3]
[402227374,1768612277930,-553.67434554,0.00022739,3]
[402227375,1768612277939,-500.0,0.00022739,3]
[402227376,1768612277949,-500.0,0.00022739,3]
[402227377,1768612277959,-500.0,0.00022739,3]
[402227378,1768612277969,-500.0,0.00022739,3]
[402227379,1768612277978,-500.0,0.00022739,3]
[402227380,1768612277987,-500.0,0.00022739,3]
[402227381,1768612277997,-500.0,0.00022739,3]
[402227382,1768612278007,-1606.72,0.00022739,3]
[402227383,1768612278016,-1469.77,0.00022739,3]
[402227384,1768612278026,-500.0,0.00022739,3]
[402227385,1768612278036,-500.0,0.00022739,3]
[402227386,1768612278045,-627.89,0.00022739,3]
[402227387,1768612278055,-543.89,0.00022739,3]
[402227388,1768612278064,-500.0,0.00022739,3]
[402227389,1768612278074,-500.0,0.00022739,3]
[402227390,1768612278083,-500.0,0.00022739,3]
[402227391,1768612278092,-500.0,0.00022739,3]
[402227392,1768612278101,-500.0,0.00022739,3]
[402227393,1768612278111,-643.23,0.00022739,3]
[402227394,1768612278120,-500.0,0.00022739,3]
[402227395,1768612278130,-500.0,0.00022739,3]
[402227396,1768612278139,-972.04,0.00022739,3]
[402227397,1768612278149,-500.0,0.00022739,3]
[402227398,1768612278158,-500.0,0.00022739,3]
[402227399,1768612278168,-1177.42,0.00022739,3]
[402227400,1768612278178,-500.0,0.00022739,3]
[402227401,1768612278188,-1000.0,0.00022739,2]
[402227402,1768612278198,-500.0,0.00022739,3]
[402227403,1768612278207,-1019.12,0.00022739,3]
[402227404,1768612278216,-500.0,0.00022739,3]
[402227405,1768612278226,-884.65,0.00022739,3]
[402227406,1768612278235,-675.11,0.00022739,3]
[402227407,1768612278245,-500.0,0.00022739,3]
[402227408,1768612278254,-982.13,0.00022739,3]
[402227409,1768612278263,-500.0,0.00022739,3]
[402227410,1768612278272,-500.0,0.00022739,3]
[402227411,1768612278282,-500.0,0.00022739,3]
[402227412,1768612278291,-500.0,0.00022739,3]
[402227413,1768612278301,-500.0,0.00022739,3]
[402227414,1768612278310,-918.56,0.00022739,3]
[402227415,1768612278320,-500.0,0.00022739,3]
[402227416,1768612278329,-500.0,0.00022739,3]
[402227417,1768612278339,-500.0,0.00022739,3]
[402227418,1768612278348,-500.0,0.00022739,3]
[402227419,1768612278358,-500.0,0.00022739,3]
[402227420,1768612278367,-500.0,0.00022739,3]
[402227421,1768612278376,-823.41,0.00022739,3]
[402227422,1768612278385,-500.0,0.00022739,3]
[402227423,1768612278395,-500.0,0.00022739,3]
[402227424,1768612278404,-745.47,0.00022739,3]
[402227425,1768612278414,-500.0,0.00022739,3]
[402227426,1768612278424,-559.13,0.00022739,3]
[402227427,1768612278435,-500.0,0.00022739,3]
[402227428,1768612278445,-500.0,0.00022739,3]
[402227429,1768612278455,-519.2,0.00022739,3]
[402227430,1768612278464,-500.0,0.00022739,3]
[402227431,1768612278473,-417.140764,0.00022739,3]